bitfinex/quotes_SOLUSD_20220226
["timestamp","ask_amount","ask_price","bid_price","bid_amount"]
[1645843235454,1.41011044,93.308,93.16,12.91]
[1645843235656,4.29,93.307,93.16,12.91]
[1645843235858,1.74419978,93.305,93.166,46.63901814]
[1645843236056,4.29,93.304,93.166,46.63901814]
[1645843236255,12.91,93.3,93.166,46.63901814]
[1645843236456,16.0961,93.28,93.166,46.63901814]
[1645843236654,51.53765708,93.278,93.166,46.63901814]
[1645843236856,1.61328566,93.277,93.166,46.63901814]
[1645843237256,1.43332323,93.276,93.166,46.63901814]
[1645843237458,28.25728293,93.276,93.167,4.29]
[1645843237656,1.64008988,93.275,93.167,4.29]
[1645843237862,27.85775157,93.275,93.167,4.29]
[1645843238057,3.78710209,93.274,93.167,4.29]
[1645843238460,2.36962336,93.273,93.167,4.29]
[1645843238661,2.36962336,93.273,93.17,135.7046]
[1645843238862,2.36962336,93.273,93.171,4.29]
[1645843239060,2.36962336,93.273,93.171,7.15292427]
[1645843239259,1.41747873,93.274,93.172,106.7]
[1645843239459,1.41747873,93.274,93.173,4.29]
[1645843239758,1.41747873,93.274,93.18,16.0925]
[1645843239958,1.41747873,93.274,93.181,7.92491776]
[1645843240159,1.41747873,93.274,93.182,4.29]
[1645843240963,1.41747873,93.274,93.182,110.99]
[1645843241165,49.92050834,93.278,93.191,106.7]
[1645843241361,49.92050834,93.278,93.201,106.7]
[1645843241587,49.92050834,93.278,93.203,41.65832361]
[1645843242164,49.92050834,93.278,93.204,7.15192427]
[1645843242563,49.92050834,93.278,93.21,16.0879]
[1645843242964,49.92050834,93.278,93.211,2.86292427]
[1645843244369,49.92050834,93.278,93.22,122.7858]
[1645843244570,49.92050834,93.278,93.221,12.90561229]
[1645843247173,49.92050834,93.278,93.221,15.76853656]
[1645843248078,49.92050834,93.278,93.221,2.86292427]
[1645843248275,1.40037608,93.277,93.201,2.86292427]
[1645843248574,1.57072601,93.276,93.193,4.289]
[1645843249088,1.57072601,93.276,93.194,41.08950166]
[1645843249290,1.57072601,93.276,93.195,4.29]
[1645843250791,1.57072601,93.276,93.194,41.08950166]
[1645843258198,1.57072601,93.276,93.195,4.29]
[1645843259196,1.57072601,93.276,93.194,41.08950166]
[1645843260101,1.57072601,93.276,93.195,4.29]
[1645843260301,24.181,93.277,93.195,110.99]
[1645843260500,24.181,93.277,93.2,122.7893]
[1645843260901,24.181,93.277,93.201,4.29]
[1645843261500,49.92050834,93.278,93.201,4.29]
[1645843261699,49.92050834,93.278,93.21,122.7877]
[1645843261899,49.92050834,93.278,93.211,13.47443424]
[1645843266404,22.6437,93.277,93.211,13.47443424]
[1645843266606,1.78765807,93.276,93.211,13.47443424]
[1645843267208,22.6437,93.277,93.211,13.47443424]
[1645843270311,1.60244024,93.298,93.212,106.7]
[1645843270608,1.6362548,93.326,93.212,112.41925689]
[1645843270808,45.4208,93.325,93.214,106.7]
[1645843271010,1.70401136,93.324,93.214,106.7]
[1645843271210,54.95809226,93.323,93.215,2.86292427]
[1645843271509,1.77723753,93.322,93.221,106.7]
[1645843273510,1.77723753,93.322,93.233,106.7]
[1645843277418,1.77723753,93.322,93.232,41.08950166]
[1645843277618,2.37137733,93.321,93.232,41.08950166]
[1645843278217,1.77723753,93.322,93.232,41.08950166]
[1645843278418,2.37137733,93.321,93.232,41.08950166]
[1645843279622,10.67526456,93.321,93.232,41.08950166]
[1645843279824,1.80311185,93.32,93.232,41.08950166]
[1645843280222,2.37137733,93.319,93.232,41.08950166]
[1645843281325,2.37137733,93.319,93.214,39.7501]
[1645843281525,21.02493634,93.318,93.214,23.669]
[1645843281724,1.87098074,93.317,93.214,23.669]
[1645843281927,4.24235807,93.317,93.214,23.669]
[1645843282224,6.65937733,93.316,93.214,23.669]
[1645843282424,6.65937733,93.316,93.215,51.25835402]
[1645843282623,2.37137733,93.315,93.215,51.25835402]
[1645843282842,38.59398254,93.309,93.215,51.25835402]
[1645843283045,1.54224282,93.308,93.215,51.25835402]
[1645843283244,4.289,93.307,93.215,51.25835402]
[1645843283441,23.9749,93.306,93.215,51.25835402]
[1645843283643,5.957715,93.305,93.215,51.25835402]
[1645843284045,2.37137733,93.304,93.215,51.25835402]
[1645843299960,2.37137733,93.304,93.202,23.8377]
[1645843300162,16.0925,93.3,93.19,12.91]
[1645843300362,1.40863715,93.299,93.19,12.91]
[1645843300561,3.78001448,93.299,93.19,12.91]
[1645843300760,2.37137733,93.298,93.19,12.91]
[1645843301164,2.37137733,93.298,93.191,54.0663234]
[1645843301566,1.5723502,93.297,93.191,54.0663234]
[1645843301863,21.59645101,93.296,93.191,54.0663234]
[1645843302064,105.31751109,93.295,93.191,54.0663234]
[1645843302265,1.58847053,93.294,93.191,54.0663234]
[1645843302563,1.51290136,93.293,93.191,54.0663234]
[1645843302766,1.73215491,93.292,93.191,54.0663234]
[1645843303268,4.10997626,93.292,93.191,54.0663234]
[1645843303467,2.37782135,93.291,93.191,54.0663234]
[1645843305668,3.95099943,93.291,93.191,54.0663234]
[1645843305969,2.37782135,93.29,93.191,54.0663234]
[1645843307171,2.37782135,93.29,93.19,12.91]
[1645843307373,23.97427236,93.29,93.19,12.91]
[1645843307570,1.76423918,93.289,93.19,12.91]
[1645843307771,4.14206053,93.289,93.19,12.91]
[1645843307973,1.76423918,93.289,93.19,12.91]
[1645843308171,2.37782135,93.288,93.19,12.91]
[1645843308370,2.37782135,93.288,93.191,38.90395585]
[1645843318308,2.37782135,93.288,93.19,12.91]
[1645843318509,2.37782135,93.288,93.182,24.9398]
[1645843318510,16.0957,93.28,93.182,24.9398]
[1645843318710,27.5919,93.279,93.182,24.9398]
[1645843318912,1.64886296,93.278,93.182,24.9398]
[1645843319109,4.29,93.277,93.182,24.9398]
[1645843319312,36.82797184,93.276,93.182,24.9398]
[1645843319610,16.0976,93.27,93.182,24.9398]
[1645843319811,5.93802646,93.269,93.182,24.9398]
[1645843320012,8.3094365,93.269,93.182,24.9398]
[1645843320213,1.5149131,93.268,93.179,4.289]
[1645843320516,1.62212582,93.265,93.179,4.289]
[1645843320720,28.0514,93.267,93.111,26.19764504]
[1645843320721,108.32994213,93.259,93.111,23.7534]
[1645843320921,5.0,93.257,93.112,24.0242]
[1645843321118,106.7,93.256,93.112,24.0242]
[1645843321313,106.7,93.254,93.112,24.0242]
[1645843321512,106.7,93.252,93.112,24.0242]
[1645843321714,49.82556875,93.25,93.113,48.02751844]
[1645843321914,5.84977254,93.249,93.113,48.02751844]
[1645843322216,1.8524434,93.248,93.113,48.02751844]
[1645843322414,1.48064406,93.247,93.114,2.86292427]
[1645843322614,43.43231646,93.219,93.12,16.1032]
[1645843322817,1.53021881,93.218,93.12,16.1032]
[1645843323015,1.53021881,93.218,93.121,2.86292427]
[1645843323415,1.37259646,93.216,93.121,2.86292427]
[1645843323615,1.37259646,93.216,93.12,29.0132]
[1645843325423,29.29165383,93.216,93.12,29.0132]
[1645843325618,1.79735602,93.215,93.12,29.0132]
[1645843326823,66.11179535,93.219,93.14,16.1011]
[1645843327022,66.11179535,93.219,93.141,6.53641746]
[1645843327222,66.11179535,93.219,93.141,9.39934173]
[1645843327424,66.11179535,93.219,93.142,2.86292427]
[1645843327820,66.11179535,93.219,93.141,6.53641746]
[1645843329024,66.11179535,93.219,93.141,9.39934173]
[1645843331225,66.11179535,93.219,93.141,6.53641746]
[1645843331726,1.60120211,93.218,93.141,6.53641746]
[1645843332126,66.11179535,93.219,93.141,6.53641746]
[1645843337564,66.11179535,93.219,93.142,2.86292427]
[1645843337966,66.11179535,93.219,93.141,6.53641746]
[1645843340968,66.11179535,93.219,93.142,2.86292427]
[1645843341369,66.11179535,93.219,93.141,6.53641746]
[1645843341968,66.11179535,93.219,93.14,12.91]
[1645843342169,4.08766603,93.218,93.111,16.1865]
[1645843342468,4.293,93.217,93.111,16.1865]
[1645843342670,33.79681754,93.217,93.111,16.1865]
[1645843342872,29.53288334,93.216,93.112,44.57532344]
[1645843343070,1.64718174,93.215,93.112,69.30732344]
[1645843343272,16.1083,93.21,93.112,69.30732344]
[1645843343469,1.60192311,93.209,93.112,69.30732344]
[1645843344172,1.47971907,93.207,93.112,69.30732344]
[1645843344573,1.47971907,93.207,93.12,16.104]
[1645843344773,1.47971907,93.207,93.12,29.014]
[1645843344972,23.6615,93.208,93.121,2.86292427]
[1645843345373,23.6615,93.208,93.121,109.56292427]
[1645843345775,23.6615,93.208,93.122,2.86292427]
[1645843345974,23.6615,93.208,93.124,106.7]
[1645843346173,23.6615,93.208,93.123,24.6545]
[1645843346677,23.6615,93.208,93.131,9.98861246]
[1645843347873,1.61295272,93.222,93.131,9.98861246]
[1645843348074,25.49991258,93.218,93.132,2.86292427]
[1645843348374,25.49991258,93.218,93.14,16.1006]
[1645843348576,25.49991258,93.218,93.14,29.0106]
[1645843349379,23.0012,93.229,93.141,106.7]
[1645843349576,23.0012,93.229,93.16,16.0975]
[1645843349779,23.0012,93.229,93.16,29.0075]
[1645843350080,1.71130798,93.247,93.161,2.86292427]
[1645843350278,1.71130798,93.247,93.162,24.6779]
[1645843350476,1.71130798,93.247,93.163,44.57532344]
[1645843350477,43.29607638,93.246,93.163,44.57532344]
[1645843351076,43.29607638,93.246,93.17,122.7955]
[1645843351279,43.29607638,93.246,93.17,135.7055]
[1645843351477,43.29607638,93.246,93.17,31.86842427]
[1645843351680,63.4834187,93.246,93.17,29.0055]
[1645843353179,1.56778463,93.245,93.17,29.0055]
[1645843353479,43.29607638,93.246,93.171,2.86292427]
[1645843354582,43.29607638,93.246,93.17,29.0055]
[1645843357882,43.29607638,93.246,93.171,2.86292427]
[1645843358285,43.29607638,93.246,93.17,29.0055]
[1645843358587,1.65674789,93.245,93.17,29.0055]
[1645843362508,43.29607638,93.246,93.17,29.0055]
[1645843362707,43.29607638,93.246,93.17,31.86842427]
[1645843363308,23.9947,93.263,93.18,16.0931]
[1645843363611,1.39970187,93.306,93.191,106.7]
[1645843363808,1.39470508,93.317,93.201,106.7]
[1645843364008,1.39470508,93.317,93.202,2.91450832]
[1645843364209,44.48933097,93.316,93.204,9.98861246]
[1645843364412,1.54812671,93.315,93.206,2.45298295]
[1645843364612,1.54812671,93.315,93.208,106.7]
[1645843364810,1.54812671,93.315,93.221,44.57532344]
[1645843365011,23.41056036,93.314,93.221,44.57532344]
[1645843365211,1.45940635,93.313,93.221,44.57532344]
[1645843365411,27.18308348,93.313,93.221,44.57532344]
[1645843365612,1.71536822,93.311,93.222,23.8081]
[1645843366015,49.13423749,93.31,93.222,23.8081]
[1645843366217,1.4859137,93.309,93.222,23.8081]
[1645843366414,29.67133934,93.309,93.222,23.8081]
[1645843366613,22.49411226,93.308,93.222,23.8081]
[1645843366914,1.66394838,93.306,93.222,23.8081]
[1645843367315,51.50742289,93.305,93.222,23.8081]
[1645843367513,1.61755264,93.304,93.222,23.8081]
[1645843367714,29.71441517,93.304,93.222,23.8081]
[1645843368014,47.29673313,93.302,93.222,23.8081]
[1645843368215,1.66082128,93.301,93.222,23.8081]
[1645843368414,27.38449841,93.301,93.222,23.8081]
[1645843368616,1.65487729,93.3,93.222,23.8081]
[1645843369016,1.64933288,93.299,93.222,23.8081]
[1645843369218,53.15675577,93.299,93.222,23.8081]
[1645843369520,27.16902102,93.298,93.21,12.91]
[1645843369717,5.86589312,93.297,93.2,16.0909]
[1645843369916,1.6258839,93.295,93.191,23.5176]
[1645843370316,20.94881185,93.294,93.191,23.5176]
[1645843370516,1.57116396,93.293,93.197,46.41830584]
[1645843370717,4.289,93.292,93.197,46.41830584]
[1645843370919,29.36209741,93.292,93.197,46.41830584]
[1645843371117,4.01939723,93.291,93.197,46.41830584]
[1645843371317,4.289,93.29,93.197,46.41830584]
[1645843371516,10.85198797,93.29,93.197,46.41830584]
[1645843371717,41.53080283,93.29,93.197,46.41830584]
[1645843371917,48.02198799,93.289,93.197,46.41830584]
[1645843372119,45.94040885,93.288,93.197,46.41830584]
[1645843372318,1.39350533,93.287,93.197,46.41830584]
[1645843372519,24.80406569,93.287,93.197,46.41830584]
[1645843372819,52.90780289,93.286,93.197,46.41830584]
[1645843373018,1.66199531,93.284,93.197,46.41830584]
[1645843373418,2.3731854,93.283,93.197,46.41830584]
[1645843373618,29.67793231,93.283,93.197,46.41830584]
[1645843373918,1.71185844,93.281,93.197,46.41830584]
[1645843374319,1.76266781,93.279,93.197,46.41830584]
[1645843374721,1.41518221,93.277,93.197,46.41830584]
[1645843375120,1.390132,93.275,93.197,46.41830584]
[1645843375319,43.82823879,93.274,93.197,46.41830584]
[1645843375520,1.7152372,93.273,93.197,46.41830584]
[1645843375720,4.17698571,93.273,93.197,46.41830584]
[1645843375924,23.0624,93.272,93.197,46.41830584]
[1645843376123,1.37701014,93.271,93.197,46.41830584]
[1645843380349,1.37701014,93.271,93.191,23.5176]
[1645843380531,30.55848647,93.27,93.167,4.289]
[1645843380725,1.47169616,93.269,93.168,23.3752]
[1645843380926,5.95066055,93.268,93.168,23.3752]
[1645843381126,29.36122091,93.268,93.168,23.3752]
[1645843381327,1.80702378,93.267,93.169,45.64988383]
[1645843381530,16.0991,93.26,93.169,45.64988383]
[1645843381826,49.56939535,93.259,93.169,45.64988383]
[1645843382027,5.85989054,93.258,93.169,45.64988383]
[1645843382228,10.78338756,93.258,93.169,45.64988383]
[1645843382427,28.09673796,93.257,93.169,45.64988383]
[1645843382626,24.41049906,93.256,93.169,45.64988383]
[1645843382829,1.67329408,93.255,93.169,45.64988383]
[1645843383827,1.67329408,93.255,93.169,44.61420154]
[1645843384029,25.08385444,93.255,93.169,44.61420154]
[1645843384229,1.83193174,93.254,93.169,44.61420154]
[1645843386732,23.41056036,93.253,93.169,44.61420154]
[1645843386931,1.62171362,93.252,93.169,44.61420154]
[1645843388532,23.41056036,93.251,93.169,44.61420154]
[1645843388735,1.69431973,93.25,93.169,44.61420154]
[1645843389433,1.62991013,93.248,93.169,44.61420154]
[1645843389832,1.78390538,93.246,93.169,44.61420154]
[1645843390033,44.86392108,93.245,93.169,44.61420154]
[1645843393235,44.86392108,93.245,93.169,60.76050154]
[1645843394037,44.86392108,93.245,93.17,106.7]
[1645843394236,44.86392108,93.245,93.18,119.61]
[1645843394636,44.86392108,93.245,93.18,12.91]
[1645843395460,44.86392108,93.245,93.18,29.0033]
[1645843396257,24.2453,93.255,93.18,135.7033]
[1645843396658,20.94881185,93.272,93.18,135.7033]
[1645843396859,2.46174851,93.28,93.183,2.2599104]
[1645843397057,2.46174851,93.292,93.183,2.2599104]
[1645843397058,2.46174851,93.292,93.2,122.7902]
[1645843397257,60.37089258,93.291,93.202,8.91405207]
[1645843397960,83.78145294,93.291,93.203,106.7]
[1645843398159,60.37089258,93.291,93.211,106.7]
[1645843398661,60.37089258,93.291,93.213,106.7]
[1645843399060,60.37089258,93.291,93.212,22.6562]
[1645843399361,60.37089258,93.291,93.213,106.7]
[1645843399560,60.37089258,93.291,93.221,151.31420154]
[1645843399760,60.37089258,93.291,93.221,44.61420154]
[1645843399960,59.87089258,93.291,93.221,44.61420154]
[1645843402866,30.41351458,93.29,93.221,44.61420154]
[1645843403069,1.79056451,93.289,93.221,44.61420154]
[1645843403365,52.73539179,93.289,93.221,44.61420154]
[1645843403565,27.10104913,93.288,93.221,44.61420154]
[1645843403770,1.8152453,93.287,93.212,22.6562]
[1645843403968,1.62738466,93.285,93.201,23.3342]
[1645843404166,4.289,93.284,93.201,23.3342]
[1645843404566,13.44993083,93.283,93.201,23.3342]
[1645843404768,1.46759647,93.282,93.202,45.08759187]
[1645843404966,5.35453499,93.282,93.202,45.08759187]
[1645843405167,20.67235435,93.281,93.202,45.08759187]
[1645843405369,1.58336594,93.28,93.202,45.08759187]
[1645843405571,19.05402431,93.28,93.202,45.08759187]
[1645843405773,106.7,93.277,93.09,161.36]
[1645843405968,1.33358248,93.201,93.119,15.9948]
[1645843406168,106.7,93.238,93.075,11.21561256]
[1645843406368,2.82136455,93.202,93.075,11.21561256]
[1645843406569,2.82136455,93.202,93.073,2.76234479]
[1645843406570,53.2069,93.201,93.073,2.76234479]
[1645843406771,41.64465381,93.2,93.09,16.1082]
[1645843406973,51.28621978,93.201,93.101,106.7]
[1645843407270,48.9139,93.201,93.101,106.7]
[1645843407471,2.37231978,93.2,93.101,106.7]
[1645843407673,2.37231978,93.2,93.102,2.59599761]
[1645843407870,2.37231978,93.2,93.103,1.58571996]
[1645843408471,2.37231978,93.2,93.111,106.7]
[1645843408670,48.9139,93.201,93.111,106.7]
[1645843409471,48.9139,93.201,93.112,2.86292427]
[1645843409675,2.37231978,93.219,93.12,16.1023]
[1645843409872,58.73275068,93.223,93.131,106.7]
[1645843410072,23.10331263,93.226,93.133,106.7]
[1645843410272,47.7824,93.236,93.134,3.18815859]
[1645843410471,2.37231978,93.259,93.134,3.18815859]
[1645843410675,2.37231978,93.27,93.136,106.7]
[1645843410874,2.37231978,93.27,93.151,106.7]
[1645843411072,51.50973237,93.269,93.153,106.7]
[1645843411273,78.3716285,93.269,93.154,2.51278404]
[1645843411573,78.3716285,93.269,93.156,2.33273521]
[1645843411773,78.3716285,93.269,93.18,16.0922]
[1645843411973,51.50973237,93.269,93.182,106.7]
[1645843412176,26.86189613,93.268,93.182,106.7]
[1645843413276,26.86189613,93.268,93.181,36.89907795]
[1645843413474,26.86189613,93.268,93.2,16.0906]
[1645843413674,1.53257968,93.267,93.201,7.93537566]
[1645843415578,26.86189613,93.266,93.201,7.93537566]
[1645843416780,51.50973237,93.269,93.201,7.93537566]
[1645843416982,51.50973237,93.269,93.21,16.0887]
[1645843417182,47.7824,93.274,93.21,16.0887]
[1645843417383,47.7824,93.274,93.21,24.2187]
[1645843417581,47.7824,93.274,93.21,130.9187]
[1645843417782,24.78189613,93.295,93.21,130.9187]
[1645843418182,45.55338538,93.294,93.21,130.9187]
[1645843418781,45.55338538,93.294,93.21,146.684]
[1645843419180,24.78189613,93.293,93.21,146.684]
[1645843422083,24.78189613,93.293,93.21,24.2187]
[1645843422284,3.92039969,93.292,93.21,16.0887]
[1645843422486,1.63051662,93.291,93.21,16.0887]
[1645843422686,1.57799414,93.29,93.21,16.0887]
[1645843422888,28.71189393,93.29,93.21,16.0887]
[1645843423089,1.8002665,93.289,93.201,7.93537566]
[1645843423290,1.52741762,93.288,93.201,7.93537566]
[1645843423491,1.53841793,93.287,93.201,7.93537566]
[1645843423893,24.78189613,93.286,93.201,7.93537566]
[1645843424091,1.53657236,93.285,93.201,7.93537566]
[1645843424494,23.19291875,93.284,93.201,7.93537566]
[1645843424697,1.44742996,93.283,93.201,7.93537566]
[1645843424895,3.79943362,93.283,93.201,7.93537566]
[1645843425298,27.13389979,93.282,93.201,7.93537566]
[1645843425498,1.43192968,93.281,93.201,7.93537566]
[1645843425798,51.6924334,93.28,93.201,7.93537566]
[1645843425997,1.79506571,93.279,93.201,7.93537566]
[1645843426198,28.9289655,93.279,93.201,7.93537566]
[1645843426397,1.83396536,93.278,93.201,7.93537566]
[1645843427398,2.35200366,93.277,93.201,7.93537566]
[1645843427598,23.0793,93.276,93.201,7.93537566]
[1645843427798,24.78189613,93.279,93.201,7.93537566]
[1645843428001,51.6924334,93.28,93.201,7.93537566]
[1645843428199,1.487651,93.279,93.201,7.93537566]
[1645843428504,51.6924334,93.28,93.21,16.0886]
[1645843429614,1.39383044,93.279,93.21,16.0886]
[1645843433819,2.35179687,93.278,93.21,16.0886]
[1645843434020,2.35179687,93.278,93.201,7.93537566]
[1645843434217,1.41562441,93.276,93.201,7.93537566]
[1645843434617,2.35179687,93.275,93.201,7.93537566]
[1645843440536,2.35179687,93.275,93.19,16.0919]
[1645843440936,3.754934,93.275,93.19,16.0919]
[1645843441233,2.34553216,93.274,93.19,16.0919]
[1645843441432,2.34553216,93.274,93.27,0.0095566]
[1645843441632,3.03062783,93.273,93.27,0.0095566]
[1645843442032,2.34553216,93.272,93.27,0.0095566]
[1645843442241,27.5647,93.271,93.27,0.0095566]
[1645843442632,54.69212829,93.271,93.27,0.0095566]
[1645843442834,64.59474432,93.271,93.27,0.0095566]
[1645843443233,60.30674432,93.271,93.27,0.0095566]
[1645843443533,25.62223216,93.271,93.27,0.0095566]
[1645843443936,50.40412829,93.271,93.27,0.0095566]
[1645843448367,25.62223216,93.271,93.27,0.0095566]
[1645843448565,23.2767,93.271,93.27,0.0095566]
[1645843452271,24.87530034,93.271,93.27,0.0095566]
[1645843452471,27.90592817,93.271,93.27,0.0095566]
[1645843460680,26.30732783,93.271,93.27,0.0095566]
[1645843461478,3.03062783,93.271,93.27,0.0095566]
[1645843461680,3.03062783,93.271,93.19,16.092]
[1645843462783,3.03062783,93.271,93.191,33.94845117]
[1645843464381,2.32384588,93.27,93.191,33.94845117]
[1645843465782,2.32384588,93.27,93.192,4.29]
[1645843466886,2.32384588,93.27,93.191,33.94845117]
[1645843469383,3.03062783,93.271,93.191,33.94845117]
[1645843473194,3.03062783,93.271,93.192,4.29]
[1645843473494,5.35373249,93.271,93.192,4.29]
[1645843473695,3.03062783,93.271,93.192,4.29]
[1645843474319,3.03062783,93.271,93.262,1.8465049]
[1645843474519,3.03062783,93.271,93.262,4.9e-06]
[1645843481631,2.32310466,93.27,93.262,4.9e-06]
[1645843482030,25.48438271,93.27,93.262,4.9e-06]
[1645843482228,24.78189613,93.269,93.262,4.9e-06]
[1645843482429,27.10500079,93.269,93.262,4.9e-06]
[1645843482630,2.32310466,93.268,93.262,4.9e-06]
[1645843482929,25.48438271,93.268,93.262,4.9e-06]
[1645843483132,24.78189613,93.267,93.262,4.9e-06]
[1645843483331,27.10500079,93.267,93.262,4.9e-06]
[1645843483531,2.32310466,93.266,93.262,4.9e-06]
[1645843483735,22.5522,93.265,93.262,4.9e-06]
[1645843484032,4.01548433,93.264,93.262,4.9e-06]
[1645843484434,2.32310466,93.263,93.262,4.9e-06]
[1645843485933,25.48438271,93.263,93.262,4.9e-06]
[1645843491137,50.34957702,93.263,93.262,4.9e-06]
[1645843491344,175.05639576,93.263,93.262,4.9e-06]
[1645843491538,193.71857661,93.263,93.262,4.9e-06]
[1645843491744,16.1019,93.25,93.171,4.288]
[1645843491944,1.86483423,93.248,93.171,4.288]
[1645843492343,2.32310466,93.247,93.171,4.288]
[1645843492539,25.48438271,93.247,93.171,4.288]
[1645843492740,58.57780666,93.246,93.172,35.95410319]
[1645843492941,1.76417187,93.245,93.172,35.95410319]
[1645843493141,26.546068,93.245,93.172,35.95410319]
[1645843493346,27.10500079,93.245,93.171,4.288]
[1645843493545,27.13664149,93.244,93.171,4.288]
[1645843493742,1.4529096,93.243,93.171,4.288]
[1645843493942,26.93729231,93.243,93.171,4.288]
[1645843494144,1.50920358,93.242,93.171,4.288]
[1645843494353,28.61420437,93.242,93.171,4.288]
[1645843494556,3.85423976,93.241,93.171,4.288]
[1645843494748,28.66777659,93.241,93.171,4.288]
[1645843494946,27.10500079,93.24,93.171,4.288]
[1645843495346,25.48438271,93.239,93.171,4.288]
[1645843495547,23.4578,93.238,93.171,4.288]
[1645843495746,1.83327344,93.237,93.171,4.288]
[1645843496246,23.16127805,93.237,93.171,4.288]
[1645843499453,23.4578,93.238,93.171,4.288]
[1645843500252,58.57780666,93.246,93.171,4.288]
[1645843500650,58.57780666,93.246,93.171,6.73630122]
[1645843501459,58.57780666,93.246,93.171,110.988]
[1645843501650,58.57780666,93.246,93.181,2.98536696]
[1645843510178,22.7845,93.268,93.181,112.40341246]
[1645843510380,22.7845,93.268,93.192,3.04668775]
[1645843511180,49.69976954,93.285,93.192,3.04668775]
[1645843511380,23.74189613,93.303,93.201,106.7]
[1645843511583,23.6409,93.302,93.202,2.779773]
[1645843512180,25.82189613,93.301,93.202,2.779773]
[1645843512378,51.76572186,93.3,93.204,106.7]
[1645843512579,51.76572186,93.3,93.222,106.7]
[1645843512778,51.76572186,93.3,93.222,113.5]
[1645843514582,25.82189613,93.301,93.231,106.7]
[1645843514782,23.77353683,93.316,93.231,106.7]
[1645843514980,2.32310466,93.333,93.234,2.5347811]
[1645843515182,24.0566,93.346,93.235,0.25]
[1645843515381,2.32310466,93.373,93.241,5.0]
[1645843515580,59.91528412,93.372,93.251,106.7]
[1645843515780,59.91528412,93.372,93.281,106.7]
[1645843515979,59.91528412,93.372,93.283,106.7]
[1645843516179,59.91528412,93.372,93.284,2.84657236]
[1645843516381,23.06580946,93.371,93.284,2.84657236]
[1645843517181,24.86519431,93.37,93.284,2.84657236]
[1645843517383,59.91528412,93.372,93.284,2.84657236]
[1645843517581,59.91528412,93.372,93.29,16.0746]
[1645843520586,59.91528412,93.372,93.291,106.7]
[1645843522992,59.91528412,93.372,93.292,3.0550636]
[1645843523192,59.91528412,93.372,93.293,4.285]
[1645843524692,59.91528412,93.372,93.292,4.285]
[1645843525093,62.23838878,93.372,93.292,4.285]
[1645843526095,62.23838878,93.372,93.291,106.7]
[1645843530198,62.23838878,93.372,93.291,110.985]
[1645843531302,59.91528412,93.372,93.291,110.985]
[1645843531504,61.46020856,93.372,93.291,110.985]
[1645843531901,84.52601802,93.372,93.291,110.985]
[1645843532101,2.32310466,93.371,93.291,110.985]
[1645843532300,23.7438,93.37,93.291,110.985]
[1645843533906,25.38872864,93.369,93.291,4.285]
[1645843534127,25.38872864,93.369,93.282,12.48057269]
[1645843534128,12.91,93.36,93.282,12.48057269]
[1645843534307,41.60026227,93.358,93.282,12.48057269]
[1645843534507,24.6553,93.357,93.282,12.48057269]
[1645843534808,1.40430348,93.356,93.282,12.48057269]
[1645843535108,26.79303212,93.356,93.282,12.48057269]
[1645843535308,1.43546012,93.355,93.282,12.48057269]
[1645843535510,26.82418876,93.355,93.282,12.48057269]
[1645843535709,3.94041675,93.354,93.282,12.48057269]
[1645843536107,2.32291918,93.353,93.282,12.48057269]
[1645843537608,24.6553,93.357,93.282,12.48057269]
[1645843539009,1.69878254,93.356,93.282,12.48057269]
[1645843540814,24.6553,93.357,93.283,106.7]
[1645843542114,24.6553,93.357,93.282,12.48057269]
[1645843542314,1.59272049,93.356,93.282,12.48057269]
[1645843545718,2.32291918,93.355,93.282,12.48057269]
[1645843546317,1.59272049,93.356,93.282,12.48057269]
[1645843551747,2.32184655,93.355,93.282,12.48057269]
[1645843552348,24.6553,93.357,93.282,12.48057269]
[1645843552749,1.48328191,93.356,93.282,12.48057269]
[1645843552947,3.80512846,93.356,93.282,12.48057269]
[1645843553951,2.32184655,93.356,93.282,12.48057269]
[1645843554352,2.32184655,93.355,93.282,12.48057269]
[1645843554552,3.95920867,93.355,93.282,12.48057269]
[1645843554952,1.63736212,93.355,93.282,12.48057269]
[1645843557556,2.32184655,93.354,93.282,12.48057269]
[1645843557757,2.32184655,93.354,93.283,4.285]
[1645843557957,24.6553,93.357,93.283,4.285]
[1645843560359,1.61801487,93.356,93.283,4.285]
[1645843564668,24.6553,93.357,93.283,110.985]
[1645843570373,24.6553,93.357,93.283,4.285]
[1645843570875,24.5298357,93.357,93.283,110.985]
[1645843571079,24.5298357,93.357,93.283,4.285]